bitfinex/quotes_BTCUSD_20230405
["timestamp","ask_amount","ask_price","bid_price","bid_amount"]
[1680709739598,0.17948,28076.0,28075.0,0.56484187]
[1680709739822,0.09498,28076.0,28075.0,0.56484187]
[1680709740027,0.1736,28076.0,28075.0,0.56484187]
[1680709740271,0.1743,28076.0,28075.0,0.56490187]
[1680709740477,0.225061,28076.0,28075.0,0.12540148]
[1680709740695,0.225061,28076.0,28075.0,0.12522148]
[1680709741319,0.5086073,28076.0,28075.0,0.12522148]
[1680709741558,0.55948603,28076.0,28075.0,0.12522148]
[1680709742167,0.50872503,28076.0,28075.0,0.12522148]
[1680709742372,0.5082133,28076.0,28075.0,0.12522148]
[1680709744496,0.5082133,28076.0,28075.0,0.02984717]
[1680709747399,0.0845,28084.0,28078.0,0.012463]
[1680709747624,0.0845,28084.0,28079.0,0.35471056]
[1680709747842,0.0845,28084.0,28081.0,0.0022]
[1680709748067,0.0845,28084.0,28082.0,0.00178]
[1680709748497,0.002,28084.0,28083.0,0.35471056]
[1680709748712,0.00018,28086.0,28083.0,0.36947156]
[1680709748951,0.00018,28087.0,28083.0,0.36947156]
[1680709749162,0.00018,28087.0,28084.0,0.1]
[1680709749384,0.26429532,28086.0,28085.0,0.00178]
[1680709749600,0.26447532,28086.0,28085.0,0.0022]
[1680709750244,0.00018,28086.0,28085.0,0.0022]
[1680709750456,0.0845,28087.0,28085.0,0.25341061]
[1680709750676,0.023,28086.0,28085.0,0.0032]
[1680709750880,0.023,28086.0,28085.0,0.38698219]
[1680709751315,0.023,28086.0,28085.0,0.38520219]
[1680709751527,0.023,28086.0,28085.0,0.65969056]
[1680709751974,0.02131786,28088.0,28085.0,0.65869056]
[1680709752192,0.02131786,28088.0,28086.0,0.75471056]
[1680709752435,0.02131786,28088.0,28086.0,0.75649056]
[1680709752681,0.02131786,28088.0,28087.0,0.53142572]
[1680709752881,0.02131786,28088.0,28087.0,0.88791628]
[1680709753149,0.02131786,28088.0,28087.0,0.88843628]
[1680709753362,0.02331786,28088.0,28087.0,0.88843628]
[1680709753575,0.02030994,28088.0,28087.0,0.43372572]
[1680709753782,0.01830994,28088.0,28087.0,0.43372572]
[1680709753995,0.02030994,28088.0,28087.0,0.44872572]
[1680709754432,0.02130994,28088.0,28087.0,0.46372572]
[1680709754645,0.01830994,28088.0,28087.0,0.46362175]
[1680709755079,0.01830994,28088.0,28087.0,0.46540175]
[1680709755308,0.01830994,28088.0,28087.0,0.38868659]
[1680709755521,0.01830994,28088.0,28087.0,0.83042579]
[1680709756367,0.01930994,28088.0,28087.0,0.84542579]
[1680709756579,0.01532034,28088.0,28087.0,0.83042579]
[1680709756796,0.01732034,28088.0,28087.0,0.84542579]
[1680709757069,0.01532034,28088.0,28087.0,0.83042579]
[1680709757290,0.01632034,28088.0,28087.0,0.84542579]
[1680709757502,0.01632034,28088.0,28087.0,0.83042579]
[1680709757503,0.01235565,28088.0,28087.0,0.83042579]
[1680709758636,0.01041567,28088.0,28087.0,0.84542579]
[1680709758848,0.00941567,28088.0,28087.0,0.83042579]
[1680709759064,0.01041567,28088.0,28087.0,0.49071523]
[1680709761592,0.01041567,28088.0,28087.0,0.34897603]
[1680709762049,0.01041567,28088.0,28087.0,0.88169659]
[1680709762671,0.00750019,28088.0,28087.0,0.88169659]
[1680709763326,0.00650019,28088.0,28087.0,0.86669659]
[1680709763540,0.004609,28088.0,28087.0,1.25005262]
[1680709763755,0.004609,28088.0,28087.0,0.89269659]
[1680709763756,9e-06,28088.0,28087.0,0.89269659]
[1680709764384,0.02365,28089.0,28087.0,0.86669659]
[1680709764639,0.02365,28089.0,28088.0,0.75471056]
[1680709764851,0.02365,28089.0,28088.0,0.76005056]
[1680709765268,0.02365,28089.0,28088.0,0.77955056]
[1680709765499,0.02465,28089.0,28088.0,0.80755056]
[1680709765710,0.02180391,28089.0,28088.0,0.83315358]
[1680709765935,0.02080391,28089.0,28088.0,0.80515358]
[1680709766140,0.02180391,28089.0,28088.0,1.19834669]
[1680709766347,0.02080391,28089.0,28088.0,0.80515358]
[1680709766555,0.01798153,28089.0,28088.0,1.04400499]
[1680709766990,0.01798153,28089.0,28088.0,0.68929443]
[1680709767633,0.01518267,28089.0,28088.0,0.68929443]
[1680709768043,0.01618267,28089.0,28088.0,0.71529443]
[1680709768514,0.01518267,28089.0,28088.0,0.68929443]
[1680709768723,0.01339783,28089.0,28088.0,0.46504278]
[1680709768940,0.01339783,28089.0,28088.0,0.07044302]
[1680709769153,0.01339783,28089.0,28088.0,0.47456576]
[1680709769572,0.0106362,28089.0,28088.0,0.37044302]
[1680709769789,0.0106362,28089.0,28088.0,0.80575211]
[1680709770003,0.0106362,28089.0,28088.0,0.46502825]
[1680709770218,0.0106362,28089.0,28088.0,0.46500857]
[1680709770648,0.00789758,28089.0,28088.0,0.80877242]
[1680709770863,0.00789758,28089.0,28088.0,0.80877156]
[1680709771448,0.00789758,28089.0,28088.0,0.46500771]
[1680709771660,0.00518561,28089.0,28088.0,0.46500771]
[1680709771875,0.00518561,28089.0,28088.0,0.82389998]
[1680709772082,0.00518561,28089.0,28088.0,0.46500771]
[1680709772284,0.00518561,28089.0,28088.0,0.16500771]
[1680709772752,0.00322526,28089.0,28088.0,0.13940469]
[1680709772956,0.00322526,28089.0,28088.0,0.23940469]
[1680709773173,0.00322526,28089.0,28088.0,0.53940469]
[1680709773413,0.00322526,28089.0,28088.0,0.89411525]
[1680709773619,0.00128318,28089.0,28088.0,0.91067815]
[1680709774694,0.02365,28091.0,28089.0,0.1]
[1680709774907,0.02365,28091.0,28090.0,0.36716756]
[1680709775112,0.02365,28091.0,28090.0,0.66716756]
[1680709775321,0.02365,28091.0,28090.0,0.7637428]
[1680709775742,0.02173859,28091.0,28090.0,0.7840428]
[1680709775948,0.02173859,28091.0,28090.0,1.17966731]
[1680709776327,0.02173859,28091.0,28090.0,0.59438782]
[1680709776500,0.02173859,28091.0,28090.0,1.0741942]
[1680709776711,0.02173859,28091.0,28090.0,1.09333317]
[1680709776907,0.02173859,28091.0,28090.0,0.63952679]
[1680709777110,0.02173859,28091.0,28090.0,1.03442395]
[1680709777504,0.02173859,28091.0,28090.0,1.00842395]
[1680709777704,0.02173859,28091.0,28090.0,0.98832009]
[1680709777705,0.01982469,28091.0,28090.0,0.98832009]
[1680709777861,0.01982469,28091.0,28090.0,0.61352679]
[1680709778060,0.01982469,28091.0,28090.0,0.63252679]
[1680709778238,0.01982469,28091.0,28090.0,0.61352679]
[1680709778460,0.01982469,28091.0,28090.0,0.62652679]
[1680709779305,0.01982469,28091.0,28090.0,0.61352679]
[1680709779544,0.01982469,28091.0,28090.0,0.64152679]
[1680709779888,0.01982469,28091.0,28090.0,1.06261972]
[1680709780332,0.01982469,28091.0,28090.0,1.03461972]
[1680709780528,0.01792674,28091.0,28090.0,0.89200514]
[1680709780772,0.01792674,28091.0,28090.0,0.86600514]
[1680709780970,0.01792674,28091.0,28090.0,0.88500514]
[1680709781309,0.01792674,28091.0,28090.0,0.86600514]
[1680709781852,0.01792674,28091.0,28090.0,0.87900514]
[1680709782064,0.01792674,28091.0,28090.0,0.86600514]
[1680709782435,0.01792674,28091.0,28090.0,0.87200514]
[1680709782860,0.01792674,28091.0,28090.0,0.87022614]
[1680709783063,0.01792674,28091.0,28090.0,0.86600514]
[1680709783688,0.01792674,28091.0,28090.0,0.43779321]
[1680709783925,0.01792674,28091.0,28090.0,0.13779321]
[1680709784127,0.01792674,28091.0,28090.0,0.49250377]
[1680709784337,0.01792674,28091.0,28090.0,0.79250377]
[1680709784752,0.0124855,28091.0,28090.0,0.82050377]
[1680709785158,0.0124855,28091.0,28090.0,0.79250377]
[1680709785591,0.0106255,28091.0,28090.0,0.79250377]
[1680709786012,0.0106255,28091.0,28090.0,0.81850377]
[1680709786715,0.008781,28091.0,28090.0,0.79250377]
[1680709786916,0.008781,28091.0,28090.0,0.81850377]
[1680709787517,0.00695187,28091.0,28090.0,0.81850377]
[1680709788615,0.00513798,28091.0,28090.0,0.81850377]
[1680709789617,0.00333921,28091.0,28090.0,0.81850377]
[1680709790659,0.00333921,28091.0,28090.0,0.81672477]
[1680709790660,0.00155543,28091.0,28090.0,0.81672477]
[1680709791489,0.00155543,28091.0,28090.0,0.90173116]
[1680709791699,0.02376001,28095.0,28091.0,0.1]
[1680709791901,0.02376001,28095.0,28092.0,0.4512858]
[1680709792112,0.02376001,28095.0,28093.0,0.09657524]
[1680709792323,0.02376001,28095.0,28092.0,0.35471056]
[1680709792537,0.02376001,28095.0,28093.0,0.11215667]
[1680709792748,0.02376001,28095.0,28092.0,0.35471056]
[1680709792961,0.02376001,28095.0,28093.0,0.09459907]
[1680709793175,0.02376001,28095.0,28093.0,0.10059907]
[1680709793390,0.02376001,28095.0,28093.0,0.006]
[1680709793619,0.02376001,28095.0,28094.0,0.0196]
[1680709794256,0.02376001,28095.0,28094.0,0.41205487]
[1680709794474,0.03443801,28095.0,28094.0,0.0196]
[1680709794689,0.02394001,28095.0,28094.0,0.41943668]
[1680709795348,0.07486301,28095.0,28094.0,0.41943668]
[1680709795559,0.02394001,28095.0,28094.0,0.41943668]
[1680709795767,0.07680901,28095.0,28094.0,0.42543668]
[1680709796001,0.07764401,28095.0,28094.0,0.42543668]
[1680709796218,0.07475601,28095.0,28094.0,0.42543668]
[1680709796434,0.07475601,28095.0,28094.0,0.0256]
[1680709796641,0.30498271,28095.0,28094.0,0.0256]
[1680709796852,0.38948271,28095.0,28094.0,0.0256]
[1680709797058,0.38948271,28095.0,28094.0,0.0196]
[1680709797460,0.43787098,28095.0,28094.0,0.0196]
[1680709797699,0.43787098,28095.0,28094.0,0.04008682]
[1680709797929,0.38948271,28095.0,28094.0,0.04008682]
[1680709798566,0.38948271,28095.0,28094.0,0.04108682]
[1680709801315,0.07475601,28095.0,28094.0,0.04108682]
[1680709801537,0.01,28096.0,28095.0,0.1]
[1680709801753,0.02397001,28103.0,28097.0,0.03574]
[1680709801981,0.02376001,28107.0,28103.0,0.1]
[1680709801982,0.02385001,28107.0,28103.0,0.1]
[1680709802192,0.02376001,28107.0,28105.0,0.21306964]
[1680709802410,0.02365,28109.0,28106.0,1.09565495]
[1680709802411,0.00751775,28109.0,28106.0,1.09565495]
[1680709802623,0.01382475,28111.0,28108.0,0.73673971]
[1680709802899,0.01382475,28111.0,28110.0,0.12095838]
[1680709803108,0.01382475,28111.0,28110.0,0.39228856]
[1680709803318,0.01382475,28111.0,28110.0,0.69240856]
[1680709803531,0.01382475,28111.0,28110.0,0.69222856]
[1680709803769,0.01382475,28111.0,28110.0,1.16022]
[1680709803977,0.01382475,28111.0,28110.0,1.12448]
[1680709804207,0.01382475,28111.0,28110.0,1.12436]
[1680709804630,0.29759655,28111.0,28110.0,1.1243]
[1680709804834,0.29759655,28111.0,28110.0,1.12448]
[1680709804835,0.33574621,28111.0,28110.0,1.12448]
[1680709805055,0.29759655,28111.0,28110.0,1.15048]
[1680709805266,0.38209655,28111.0,28110.0,0.82448]
[1680709805475,0.73710711,28111.0,28110.0,0.8303]
[1680709805686,0.78891011,28111.0,28110.0,0.8303]
[1680709805892,0.78891011,28111.0,28110.0,0.8243]
[1680709806095,0.78891011,28111.0,28110.0,0.8303]
[1680709806318,0.78891011,28111.0,28110.0,0.8243]
[1680709806518,0.78891011,28111.0,28110.0,0.8253]
[1680709806937,0.79958111,28111.0,28110.0,0.8253]
[1680709807145,0.78891011,28111.0,28110.0,0.8253]
[1680709807581,0.79350669,28111.0,28110.0,0.82448]
[1680709807786,0.79350669,28111.0,28110.0,0.82648]
[1680709807993,0.42812513,28111.0,28110.0,0.82448]
[1680709808203,0.42812513,28111.0,28110.0,0.82648]
[1680709808425,0.14435333,28111.0,28110.0,0.82648]
[1680709808641,0.14435333,28111.0,28110.0,0.82642]
[1680709808858,0.05985333,28111.0,28110.0,0.00012]
[1680709809065,0.05985333,28111.0,28110.0,0.001]
[1680709809276,0.14405333,28111.0,28110.0,0.001]
[1680709809488,0.15472433,28111.0,28109.0,0.33110213]
[1680709809704,0.09225033,28111.0,28110.0,0.8139]
[1680709809916,0.15509933,28111.0,28110.0,0.81408]
[1680709810140,0.62972155,28111.0,28110.0,0.81408]
[1680709810430,0.59430989,28111.0,28110.0,0.81608]
[1680709810615,0.59430989,28111.0,28110.0,0.00218]
[1680709810819,0.59430989,28111.0,28110.0,0.002]
[1680709811020,0.69017368,28111.0,28110.0,0.002]
[1680709811243,1.12027368,28111.0,28110.0,0.002]
[1680709811504,1.22877368,28111.0,28110.0,0.002]
[1680709811723,1.22877368,28111.0,28105.0,0.5]
[1680709811964,0.0845,28106.0,28105.0,0.50018]
[1680709812171,0.148311,28106.0,28105.0,0.50018]
[1680709812390,0.36243879,28106.0,28105.0,0.50018]
[1680709813470,0.71714935,28106.0,28105.0,0.50118]
[1680709813681,0.71714935,28106.0,28105.0,0.50018]
[1680709813889,0.72914935,28106.0,28105.0,0.50118]
[1680709814103,0.6871906,28106.0,28105.0,0.50118]
[1680709814528,0.93588878,28106.0,28105.0,0.52156381]
[1680709814739,0.6871906,28106.0,28105.0,0.52156381]
[1680709815154,0.9036192,28106.0,28105.0,0.52056381]
[1680709815365,0.9121192,28106.0,28105.0,0.52056381]
[1680709815782,0.9036192,28106.0,28105.0,0.52056381]
[1680709816390,0.9036192,28106.0,28105.0,0.50388007]
[1680709816391,0.9038592,28106.0,28105.0,0.50388007]
[1680709816599,0.9308592,28106.0,28105.0,0.30762151]
[1680709817037,0.7024306,28106.0,28105.0,0.30762151]
[1680709817446,0.91359458,28106.0,28105.0,0.30762151]
[1680709817651,0.91359458,28106.0,28105.0,0.32800532]
[1680709817862,0.7024306,28106.0,28105.0,0.32800532]
[1680709818086,1.3320306,28106.0,28105.0,0.32800532]
[1680709818530,1.4316306,28106.0,28105.0,0.1535622]
[1680709818738,0.1,28105.0,28101.0,0.00018]
[1680709818949,0.0844,28102.0,28100.0,0.001]
[1680709819164,0.57439956,28101.0,28100.0,0.001]
[1680709819575,0.56455856,28101.0,28100.0,0.001]
[1680709819783,0.63104442,28101.0,28100.0,0.001]
[1680709820194,0.87184341,28101.0,28100.0,0.001]
[1680709820399,0.63104442,28101.0,28100.0,0.001]
[1680709820606,0.93489238,28101.0,28100.0,0.001]
[1680709821027,0.65804442,28101.0,28100.0,0.001]
[1680709821229,0.88556658,28101.0,28100.0,0.001]
[1680709821640,0.75804442,28101.0,28100.0,0.001]
[1680709821844,0.84254442,28101.0,28100.0,0.001]
[1680709822047,0.81554442,28101.0,28100.0,0.001]
[1680709822255,0.84254442,28101.0,28100.0,0.001]
[1680709822458,0.81554442,28101.0,28100.0,0.001]
[1680709822665,0.84254442,28101.0,28100.0,0.001]
[1680709824331,1.10444691,28101.0,28100.0,0.001]
[1680709824537,0.70484342,28101.0,28100.0,0.001]
[1680709824741,0.9848725,28101.0,28100.0,0.001]
[1680709825374,0.86022344,28101.0,28100.0,0.001]
[1680709825794,0.64129842,28101.0,28100.0,0.001]
[1680709825999,0.8732636,28101.0,28100.0,0.001]
[1680709826214,0.64129842,28101.0,28100.0,0.001]
[1680709827294,0.74129842,28101.0,28100.0,0.001]
[1680709827507,0.82629842,28101.0,28100.0,0.001]
[1680709828594,0.74179842,28101.0,28100.0,0.001]
[1680709830556,0.64179842,28101.0,28100.0,0.001]
[1680709831191,0.84619644,28101.0,28100.0,0.001]
[1680709831836,0.64179842,28101.0,28100.0,0.001]
[1680709832249,0.88483197,28101.0,28100.0,0.001]
[1680709832424,0.89697684,28101.0,28100.0,0.001]
[1680709832630,0.64179842,28101.0,28100.0,0.001]
[1680709832835,0.63111448,28101.0,28100.0,0.001]
[1680709833040,0.67980848,28101.0,28100.0,0.001]
[1680709833237,0.72251148,28101.0,28100.0,0.001]
[1680709833993,0.82251148,28101.0,28100.0,0.001]
[1680709834404,0.94533159,28101.0,28100.0,0.001]
[1680709834817,1.11433159,28101.0,28100.0,0.001]
[1680709835502,1.13517916,28101.0,28100.0,0.001]
[1680709835743,0.85710267,28101.0,28100.0,0.001]
[1680709835987,1.12982525,28101.0,28100.0,0.001]
[1680709836226,1.07130267,28101.0,28100.0,0.001]
[1680709836452,0.7142,28100.0,28092.0,0.37006661]
[1680709836672,0.0845,28093.0,28092.0,0.36888661]
[1680709836886,0.64022637,28093.0,28091.0,0.00018]
[1680709837095,0.64022637,28093.0,28090.0,0.36990865]
[1680709837096,0.46403656,28092.0,28090.0,0.36990865]
[1680709837325,0.120363,28091.0,28090.0,0.02156]
[1680709837533,0.47507356,28091.0,28090.0,0.0215]
[1680709837747,0.49673256,28091.0,28090.0,0.46701536]
[1680709838172,0.41253256,28091.0,28090.0,0.46701536]
[1680709838390,0.49703256,28091.0,28090.0,0.0215]
[1680709838715,0.41253256,28091.0,28090.0,0.0215]
[1680709839551,0.42453256,28091.0,28090.0,0.0235]
[1680709839721,0.50505666,28091.0,28090.0,0.0235]
[1680709839926,0.58925666,28091.0,28090.0,0.0235]
[1680709840123,0.56789766,28091.0,28090.0,0.0235]
[1680709842641,0.56789766,28091.0,28090.0,0.05316889]
[1680709843005,0.57639766,28091.0,28090.0,0.05316889]
[1680709843423,0.57639766,28091.0,28090.0,0.35385896]
[1680709843637,0.56439766,28091.0,28090.0,0.35185896]
[1680709843840,0.59139766,28091.0,28090.0,0.35185896]
[1680709844049,0.30973056,28091.0,28090.0,0.35203896]
[1680709844261,0.045069,28091.0,28090.0,0.35203896]
[1680709844467,0.045069,28091.0,28090.0,0.35185896]
[1680709844677,0.045069,28091.0,28090.0,0.05122889]
[1680709844678,0.027,28091.0,28090.0,0.05122889]
[1680709844899,0.027,28091.0,28090.0,0.12478168]
[1680709845314,0.010677,28096.0,28090.0,0.11946889]
[1680709845315,0.018629,28095.0,28090.0,0.11946889]
[1680709845540,0.0240719,28091.0,28090.0,0.11946889]
[1680709845755,0.01828,28094.0,28090.0,0.11946889]
[1680709845756,0.018408,28093.0,28090.0,0.11946889]
[1680709846000,0.001,28091.0,28090.0,0.12646889]
[1680709846219,0.35501056,28095.0,28091.0,0.43380558]
[1680709846440,0.002,28091.0,28090.0,0.12664889]
[1680709846649,0.002,28091.0,28090.0,0.05816889]
[1680709846871,0.017404,28094.0,28093.0,0.068]
[1680709847094,0.010676,28098.0,28093.0,0.068]
[1680709847311,0.37355456,28097.0,28093.0,0.068]
[1680709847514,0.019992,28096.0,28093.0,0.068]
[1680709847929,0.01807,28095.0,28093.0,0.068]
[1680709848362,0.017497,28094.0,28093.0,0.07103654]
[1680709848698,0.016965,28094.0,28093.0,0.06791654]
[1680709848786,0.0003,28097.0,28093.0,0.15541654]
[1680709849000,0.010676,28099.0,28093.0,0.15541654]
[1680709849207,0.018624,28098.0,28093.0,0.15241654]
[1680709849414,0.0293,28098.0,28093.0,0.15541654]
[1680709849629,0.010676,28098.0,28093.0,0.15241654]
[1680709849839,0.017847,28097.0,28094.0,0.02524165]
[1680709850043,0.028524,28097.0,28094.0,0.02524165]
[1680709850256,0.017457,28096.0,28094.0,0.02524165]
[1680709850467,0.017457,28096.0,28093.0,0.15241654]
[1680709850672,0.021653,28099.0,28093.0,0.42015452]
[1680709850892,0.010677,28097.0,28095.0,0.0649]
[1680709851107,0.018452,28096.0,28095.0,0.0649]
[1680709851321,0.018452,28096.0,28095.0,0.44897141]
[1680709851729,0.0003,28097.0,28095.0,0.44897141]
[1680709851730,0.029292,28097.0,28095.0,0.44897141]
[1680709851928,0.017845,28096.0,28095.0,0.44897141]
[1680709852143,0.017845,28096.0,28095.0,0.44997141]
[1680709852561,0.017845,28096.0,28095.0,0.0659]
[1680709852761,0.017845,28096.0,28095.0,0.1498]
[1680709852971,0.0003,28099.0,28096.0,0.0845]
[1680709853177,0.02568,28104.0,28098.0,0.084]
[1680709853178,0.35495056,28103.0,28098.0,0.084]
[1680709853386,0.019755,28102.0,28098.0,0.084]
[1680709853594,0.010974,28104.0,28098.0,0.084]
[1680709853794,0.028949,28103.0,28098.0,0.084]
[1680709854110,0.018076,28102.0,28098.0,0.084]
[1680709854291,0.018076,28102.0,28099.0,0.41324079]
[1680709854494,0.018376,28102.0,28099.0,0.41324079]
[1680709854712,0.029051,28102.0,28099.0,0.41324079]
[1680709854942,0.018653,28101.0,28100.0,0.0686]
[1680709855138,0.029328,28101.0,28100.0,0.0686]
[1680709855349,0.018953,28101.0,28100.0,0.0686]
[1680709855559,0.029628,28101.0,28100.0,0.0686]
[1680709855766,0.018953,28101.0,28100.0,0.0686]
[1680709856216,0.018953,28101.0,28100.0,0.0716]
[1680709856426,0.029628,28101.0,28100.0,0.0716]
[1680709856643,0.70341203,28101.0,28100.0,0.0716]
[1680709856849,0.64946511,28101.0,28100.0,0.0716]
[1680709857502,0.64946511,28101.0,28100.0,0.0686]
[1680709857706,0.64946511,28101.0,28100.0,0.09970742]
[1680709858120,0.64946511,28101.0,28100.0,0.09670742]
[1680709858332,0.66746511,28101.0,28100.0,0.09770742]
[1680709858555,0.73433672,28101.0,28100.0,0.09774396]
[1680709858788,0.73424672,28101.0,28100.0,0.02910742]
[1680709859005,0.66716511,28101.0,28100.0,0.02910742]
[1680709860508,0.66746511,28101.0,28100.0,0.02910742]
[1680709862447,0.66716511,28101.0,28100.0,0.02910742]
[1680709862669,0.4845,28108.0,28100.0,0.38381798]
[1680709862893,0.28729673,28117.0,28107.0,0.35471056]
[1680709863110,0.08511504,28113.0,28108.0,0.057234]
[1680709863333,0.21678718,28118.0,28111.0,0.005335]
[1680709863543,0.00405959,28118.0,28111.0,0.36022556]
[1680709863753,0.00484522,28117.0,28113.0,0.0845]
[1680709864033,0.00392123,28116.0,28113.0,0.00018]
[1680709864250,0.00392123,28116.0,28114.0,0.18848889]
[1680709864467,0.00392123,28116.0,28114.0,0.18866889]
[1680709864677,0.01651923,28116.0,28114.0,0.18866889]
[1680709864890,0.00392123,28116.0,28114.0,0.00018]
[1680709865104,0.37216756,28115.0,28114.0,0.00018]
[1680709865318,0.38539956,28115.0,28114.0,0.00018]
[1680709865539,0.53796637,28115.0,28114.0,0.01718]
[1680709865744,0.53796637,28115.0,28114.0,0.017]
[1680709865745,0.41740956,28115.0,28114.0,0.017]
[1680709865957,0.46769052,28115.0,28114.0,0.01718]
[1680709866401,1.03399052,28115.0,28110.0,0.00018]
[1680709866640,1.16265533,28115.0,28114.0,0.011]
[1680709866855,0.00371149,28114.0,28113.0,0.00018]
[1680709867077,0.49805495,28114.0,28113.0,0.00018]
[1680709867996,0.50688998,28114.0,28113.0,0.001]
[1680709868209,0.5816752,28114.0,28113.0,0.001]
[1680709868844,0.6816752,28114.0,28113.0,0.001]
[1680709869295,0.013141,28113.0,28106.0,0.00018]
[1680709869508,0.032016,28111.0,28106.0,0.00018]
[1680709869720,0.50987237,28110.0,28107.0,0.39470635]
[1680709869925,0.022556,28109.0,28107.0,0.39488635]
[1680709870142,0.012511,28108.0,28107.0,0.39488635]
[1680709870768,0.37789456,28108.0,28107.0,0.39488635]
[1680709871189,0.37789456,28108.0,28107.0,0.40088635]
[1680709871653,0.41791842,28108.0,28107.0,0.00618]
[1680709871864,0.51011842,28108.0,28107.0,0.006]
[1680709872044,0.51394495,28108.0,28105.0,0.00018]
[1680709872288,0.0447,28106.0,28105.0,0.00018]
[1680709872491,0.39941056,28106.0,28105.0,0.00018]
[1680709872918,0.40791056,28106.0,28105.0,0.00018]
[1680709873150,0.40791056,28106.0,28104.0,0.00018]
[1680709873337,0.40791056,28106.0,28104.0,0.00012]
[1680709873338,0.23775456,28105.0,28104.0,0.00012]
[1680709873581,0.0234,28104.0,28103.0,0.00266875]
[1680709873788,0.37811056,28104.0,28103.0,0.00266875]
[1680709874014,0.37811056,28104.0,28103.0,0.00278875]
[1680709874495,1.04314383,28104.0,28103.0,0.00266875]
[1680709874713,0.90109702,28104.0,28103.0,0.00266875]
[1680709874933,1.00109702,28104.0,28103.0,0.00266875]
[1680709875363,1.00130702,28104.0,28103.0,0.00266875]
[1680709875577,1.02830702,28104.0,28103.0,0.00366875]
[1680709878639,1.24250702,28104.0,28103.0,0.00366875]
[1680709878856,1.58044017,28104.0,28103.0,0.00366875]
[1680709879065,1.58065017,28104.0,28103.0,0.00366875]
[1680709879349,0.17019982,28103.0,28094.0,0.3884592]
[1680709879564,0.17019982,28103.0,28094.0,0.00018]
[1680709879565,0.35471056,28095.0,28094.0,0.00018]
[1680709879784,1.05415337,28095.0,28094.0,0.00012]
[1680709879997,2.01267471,28095.0,28090.0,0.0215]
[1680709880207,0.0841,28091.0,28090.0,0.02168]
[1680709880426,0.133048,28091.0,28090.0,0.02168]
[1680709881065,0.48775856,28091.0,28090.0,0.02168]
[1680709881936,0.74985856,28091.0,28090.0,0.02168]
[1680709882163,0.87185856,28091.0,28090.0,0.0215]
[1680709882370,1.08605856,28091.0,28090.0,0.0215]
[1680709882580,1.21696555,28091.0,28090.0,0.0215]
[1680709882798,0.79166555,28091.0,28090.0,0.0215]
[1680709883008,0.81866555,28091.0,28090.0,0.02168]
[1680709883646,0.81866555,28091.0,28090.0,0.0215]
[1680709883857,0.79166555,28091.0,28090.0,0.0215]
[1680709884717,1.00586555,28091.0,28090.0,0.0215]
[1680709884928,1.03286555,28091.0,28090.0,0.0215]
[1680709886189,1.13286555,28091.0,28090.0,0.0215]
[1680709886608,1.10586555,28091.0,28090.0,0.0215]
[1680709886828,1.13286555,28091.0,28090.0,0.0215]
[1680709887418,1.03286555,28091.0,28090.0,0.0215]
[1680709887650,1.13286555,28091.0,28090.0,0.0215]
[1680709887858,1.10586555,28091.0,28090.0,0.0215]
[1680709888038,1.13286555,28091.0,28090.0,0.0215]
[1680709888474,1.21736555,28091.0,28090.0,0.0215]
[1680709889280,1.19036555,28091.0,28090.0,0.0215]
[1680709889480,1.21736555,28091.0,28090.0,0.0215]
[1680709889691,1.21736555,28091.0,28089.0,0.028456]
[1680709889692,0.1,28090.0,28089.0,0.028456]
[1680709889899,1.62478996,28090.0,28089.0,0.01764841]
[1680709890308,1.30368996,28090.0,28089.0,0.01764841]
[1680709890944,1.33068996,28090.0,28089.0,0.01764841]
[1680709891149,1.30368996,28090.0,28089.0,0.01764841]
[1680709891360,1.33068996,28090.0,28089.0,0.01764841]
[1680709891572,1.25026459,28090.0,28089.0,0.01764841]
[1680709891791,1.11076319,28090.0,28089.0,0.01764841]
[1680709892218,1.08376319,28090.0,28089.0,0.01764841]
[1680709892423,1.11076319,28090.0,28089.0,0.01764841]
[1680709892849,1.11076319,28090.0,28089.0,0.35852003]
[1680709892850,0.38171056,28090.0,28089.0,0.35852003]
[1680709893079,0.38171056,28090.0,28089.0,0.39829536]
[1680709893301,0.027,28090.0,28089.0,0.04182841]
[1680709893517,0.00453183,28097.0,28089.0,0.07190411]
[1680709893731,0.027,28090.0,28089.0,0.07190411]
[1680709893944,0.35492056,28093.0,28089.0,0.07190411]
[1680709894156,0.001,28090.0,28089.0,0.15940411]
[1680709894440,0.001,28090.0,28089.0,0.1435357]
[1680709894655,0.00021,28099.0,28091.0,0.001779]
[1680709894878,0.35471056,28097.0,28092.0,0.0845]
[1680709895100,0.00021,28097.0,28093.0,0.001779]
[1680709895310,0.35492056,28098.0,28096.0,0.38967006]
[1680709895738,0.013127,28097.0,28096.0,0.38967006]
[1680709895946,0.013337,28097.0,28096.0,0.38967006]
[1680709896781,0.00021,28097.0,28096.0,0.38967006]
[1680709896995,0.001,28097.0,28096.0,0.42267006]
[1680709897215,0.1351,28104.0,28096.0,0.38148956]
[1680709897429,0.21158175,28118.0,28107.0,0.58136056]
[1680709897649,0.00376496,28117.0,28115.0,0.001778]
[1680709897877,0.02376001,28121.0,28112.0,0.00018]
[1680709898096,0.009025,28120.0,28116.0,0.32651146]
[1680709898315,0.3589146,28119.0,28116.0,0.32651146]
[1680709898522,0.3589146,28119.0,28116.0,0.32663146]
[1680709898731,0.3589146,28119.0,28116.0,0.32669146]
[1680709899993,0.3599146,28119.0,28116.0,0.33369146]
[1680709900431,0.3599146,28119.0,28116.0,0.32669146]
[1680709900432,0.14189681,28118.0,28116.0,0.32669146]
[1680709900643,0.35908339,28118.0,28116.0,0.32669146]
[1680709900856,0.35471056,28117.0,28116.0,0.32669146]
[1680709902709,0.36171056,28117.0,28116.0,0.35715843]
[1680709903562,0.37237956,28117.0,28116.0,0.03064697]
[1680709903764,0.41422153,28117.0,28116.0,0.03046697]
[1680709904181,0.42272153,28117.0,28116.0,0.03064697]
[1680709904593,0.42272153,28117.0,28116.0,0.03046697]
[1680709905412,0.41572153,28117.0,28116.0,0.02946697]
[1680709905824,0.42172153,28117.0,28116.0,0.03046697]
[1680709908324,0.52172153,28117.0,28116.0,0.03046697]
[1680709908533,0.42172153,28117.0,28116.0,0.001]
[1680709908739,0.92576592,28117.0,28112.0,0.00018]
[1680709908945,0.92576592,28117.0,28108.0,0.44349992]
[1680709908946,0.60789851,28117.0,28116.0,0.001]
[1680709909149,0.91984851,28117.0,28116.0,0.001]
[1680709909813,0.92784851,28117.0,28107.0,0.41898301]